bitfinex/quotes_ETHUSD_20240928
["timestamp","ask_amount","ask_price","bid_price","bid_amount"]
[1727554767830,5.68187571,2685.0,2684.7,0.8097]
[1727554768334,3.7244,2685.0,2684.7,0.8097]
[1727554769028,5.68187571,2685.0,2684.7,0.8097]
[1727554769230,3.7244,2685.0,2684.7,0.8097]
[1727554770255,5.68187571,2685.0,2684.7,0.8097]
[1727554770465,3.7244,2685.0,2684.7,0.8097]
[1727554770665,5.68187571,2685.0,2684.7,0.8097]
[1727554770868,3.7244,2685.0,2684.7,0.8097]
[1727554772372,5.68187571,2685.0,2684.7,0.8097]
[1727554773695,3.7244,2685.0,2684.7,0.8097]
[1727554774781,5.68187571,2685.0,2684.7,0.8097]
[1727554774959,5.68176081,2685.0,2684.7,0.8097]
[1727554776153,3.7244,2685.0,2684.7,0.8097]
[1727554776589,5.68176081,2685.0,2684.7,0.8097]
[1727554777602,1.95736081,2685.0,2684.7,0.8097]
[1727554778303,5.68176081,2685.0,2684.7,0.8097]
[1727554779897,3.7244,2685.0,2684.7,0.8097]
[1727554780099,1.95736087,2685.0,2684.7,0.8097]
[1727554781404,5.68161087,2685.1,2684.7,0.8097]
[1727554781909,5.68161087,2685.1,2684.8,0.09083046]
[1727554782110,5.68161087,2685.1,2684.7,0.8097]
[1727554782326,5.68161087,2685.1,2684.9,0.09083046]
[1727554782498,5.68161087,2685.1,2684.7,0.8097]
[1727554782700,1.95736087,2685.0,2684.8,0.09083046]
[1727554782901,1.95736087,2685.0,2684.7,0.8097]
[1727554783099,1.95736087,2685.0,2684.8,0.09083046]
[1727554783305,1.95736087,2685.0,2684.7,0.8097]
[1727554783624,1.95736087,2685.0,2684.9,0.09072059]
[1727554783825,1.95736087,2685.0,2684.7,0.8097]
[1727554784005,1.95736087,2685.0,2684.9,0.09072059]
[1727554784203,1.95736087,2685.0,2684.7,0.8097]
[1727554784689,1.95736087,2685.0,2684.8,0.09072059]
[1727554785000,1.95736688,2685.0,2684.7,0.8097]
[1727554785202,1.95736688,2685.0,2684.9,0.09072059]
[1727554785391,1.95736688,2685.0,2684.7,0.8097]
[1727554785592,1.95736688,2685.0,2684.9,0.09072059]
[1727554785793,1.95736688,2685.0,2684.7,0.8097]
[1727554786032,1.95736688,2685.0,2684.9,0.09072059]
[1727554786193,1.95736688,2685.0,2684.7,0.8097]
[1727554786392,1.95736688,2685.0,2684.9,0.09072059]
[1727554786592,1.95736688,2685.0,2684.7,0.8097]
[1727554786790,1.95736688,2685.0,2684.9,0.09072059]
[1727554787001,1.95736688,2685.0,2684.7,0.8097]
[1727554787207,1.95736688,2685.0,2684.9,0.09072059]
[1727554787407,1.95736688,2685.0,2684.7,0.8097]
[1727554787692,1.95736688,2685.0,2684.8,0.09071213]
[1727554787905,1.95736688,2685.0,2684.7,0.8097]
[1727554788230,1.95736688,2685.0,2684.9,0.09071213]
[1727554788434,1.95736688,2685.0,2684.7,0.8097]
[1727554788608,1.95736688,2685.0,2684.9,0.09069523]
[1727554788795,1.95736688,2685.0,2684.7,0.8097]
[1727554789001,1.95736688,2685.0,2684.9,0.09069523]
[1727554789221,1.95736688,2685.0,2684.7,0.8097]
[1727554789405,1.95736688,2685.0,2684.9,0.09069523]
[1727554789620,1.95736688,2685.0,2684.7,0.8097]
[1727554789934,1.95763844,2685.0,2684.7,0.8097]
[1727554790428,1.95763844,2685.0,2684.8,0.09069523]
[1727554790932,1.95763844,2685.0,2684.9,0.09069523]
[1727554791131,1.95763844,2685.0,2684.7,0.8097]
[1727554791319,1.95763844,2685.0,2684.9,0.09069523]
[1727554791711,1.95763844,2685.0,2684.7,0.8097]
[1727554791914,1.95763844,2685.0,2684.9,0.09069523]
[1727554792126,1.95763844,2685.0,2684.7,0.8097]
[1727554792288,1.95763844,2685.0,2684.9,0.09069523]
[1727554792636,1.95763844,2685.0,2684.7,0.8097]
[1727554792834,1.95763844,2685.0,2684.9,0.09069523]
[1727554793197,1.95763844,2685.0,2684.7,0.8097]
[1727554793504,5.68209844,2685.0,2684.7,0.8097]
[1727554793704,5.68209844,2685.0,2684.8,0.09069523]
[1727554793933,5.68209844,2685.0,2684.7,0.8097]
[1727554794093,5.68209844,2685.0,2684.9,0.09069523]
[1727554794293,5.68209844,2685.0,2684.7,0.8097]
[1727554794618,5.68209844,2685.0,2684.8,0.09066987]
[1727554794806,5.6826874,2685.0,2684.8,0.09066987]
[1727554794991,5.6826874,2685.0,2684.7,0.8097]
[1727554795191,5.6826874,2685.0,2684.9,0.09066987]
[1727554795405,5.6826874,2685.0,2684.7,0.8097]
[1727554795590,5.6826874,2685.0,2684.9,0.09066987]
[1727554796047,5.6826874,2685.0,2684.7,0.8097]
[1727554796561,5.6826874,2685.0,2684.8,0.09066987]
[1727554796745,1.9582274,2685.0,2684.7,0.8097]
[1727554796951,1.9582274,2684.9,2684.7,0.8097]
[1727554799557,1.95872344,2684.9,2684.7,0.8097]
[1727554799758,1.95872344,2684.9,2684.5,4.53364]
[1727554802431,5.68318344,2685.0,2684.5,4.53364]
[1727554802662,1.95872344,2684.9,2684.5,4.53364]
[1727554802972,3.72446,2685.0,2684.5,4.53364]
[1727554803177,1.95839348,2684.9,2684.5,4.53364]
[1727554803385,5.68285348,2685.0,2684.5,4.53364]
[1727554803568,1.95839348,2684.9,2684.5,4.53364]
[1727554803883,1.95839348,2684.9,2684.3,3.72526]
[1727554803884,6.69870383,2684.9,2684.3,3.72526]
[1727554804087,2.73909348,2684.8,2684.2,4.52709]
[1727554804240,6.46377348,2684.8,2684.3,4.59357629]
[1727554804572,6.46377348,2684.8,2684.3,3.72529]
[1727554805782,6.46377348,2684.8,2684.3,7.45058]
[1727554805955,6.46377348,2684.8,2684.3,3.72529]
[1727554806156,2.73909348,2684.8,2684.4,3.72522]
[1727554806877,6.46379348,2684.8,2684.3,3.72529]
[1727554808777,6.46379348,2684.8,2684.3,7.45058]
[1727554809370,4.5054,2684.8,2684.3,3.72528]
[1727554809570,6.46379348,2684.8,2684.3,3.72528]
[1727554809949,4.5054,2684.8,2684.3,3.72528]
[1727554810150,6.46379348,2684.8,2684.3,3.72528]
[1727554810350,4.5054,2684.8,2684.3,7.45056]
[1727554810575,6.46379348,2684.8,2684.3,7.45056]
[1727554811049,4.5054,2684.8,2684.3,7.45056]
[1727554811772,4.5054,2684.8,2684.4,3.7252]
[1727554812086,4.5054,2684.8,2684.4,3.81260852]
[1727554813886,0.7807,2684.8,2684.4,3.81260852]
[1727554817577,0.7807,2684.8,2684.5,3.72508]
[1727554817979,0.7807,2684.8,2684.6,0.08740852]
[1727554818378,1.95734828,2684.9,2684.6,0.08740852]
[1727554818600,1.95734828,2685.0,2684.7,3.72469]
[1727554818764,1.95734828,2685.0,2684.8,3.72466]
[1727554818971,1.95734828,2685.1,2684.8,3.72466]
[1727554819184,1.95734828,2685.1,2684.9,0.08757752]
[1727554819509,1.95734828,2685.1,2684.7,3.72469]
[1727554819707,1.95734828,2685.1,2684.8,4.50738]
[1727554819911,2.73764828,2685.2,2684.8,4.59495752]
[1727554820262,1.95734828,2685.1,2684.8,4.59495752]
[1727554820467,2.73764828,2685.2,2684.9,3.72452]
[1727554820690,1.95734828,2685.2,2684.9,3.72452]
[1727554821181,1.95734828,2685.2,2685.0,0.08757752]
[1727554821765,8.68140828,2685.3,2685.0,0.08757752]
[1727554821964,10.03769407,2685.3,2684.9,3.72452]
[1727554822208,1.95734828,2685.2,2684.9,3.72452]
[1727554822564,1.95691059,2685.2,2684.9,3.72452]
[1727554823481,1.95691059,2685.2,2684.8,0.7828]
[1727554824073,1.95691059,2685.2,2684.9,0.08740007]
[1727554824274,10.03725638,2685.3,2684.9,0.08740007]
[1727554824704,1.95691059,2685.2,2684.9,0.08740007]
[1727554825599,5.68097059,2685.3,2684.9,0.08740007]
[1727554825770,1.95691059,2685.2,2684.9,0.08740007]
[1727554826608,5.68097059,2685.3,2684.9,0.08740007]
[1727554826777,1.95691059,2685.2,2684.9,0.08740007]
[1727554827511,3.72406,2685.3,2684.9,0.08740007]
[1727554827688,1.95632399,2685.2,2684.9,0.08740007]
[1727554827894,1.9563201,2685.2,2684.9,0.08740007]
[1727554829109,9.4044401,2685.3,2684.9,0.08740007]
[1727554829273,5.6803801,2685.3,2684.9,0.08740007]
[1727554829475,1.9563201,2685.2,2684.9,0.08740007]
[1727554829674,1.9563201,2685.3,2685.0,3.72438]
[1727554830119,2.7225201,2685.4,2685.1,0.08722264]
[1727554830470,2.7225201,2685.4,2685.0,3.72438]
[1727554830876,2.7225201,2685.4,2685.1,0.08722264]
[1727554831315,2.7225201,2685.4,2685.0,3.72438]
[1727554831780,2.7225201,2685.4,2685.1,0.08722264]
[1727554831982,2.7225201,2685.4,2685.0,3.72438]
[1727554832318,2.72206163,2685.4,2685.2,0.13229442]
[1727554832494,2.72206163,2685.4,2685.0,4.7033168]
[1727554832696,9.44590163,2685.4,2685.3,0.13229442]
[1727554832896,9.44590163,2685.4,2685.0,3.72438]
[1727554833308,9.44590163,2685.4,2685.1,0.13229442]
[1727554834881,9.44590163,2685.4,2684.9,5.28204797]
[1727554835180,9.44590163,2685.4,2685.0,4.7033308]
[1727554835384,9.44590163,2685.4,2685.0,4.83562522]
[1727554836484,4.49004,2685.4,2685.0,4.83562522]
[1727554839621,1.95586163,2685.5,2685.0,4.83562522]
[1727554839920,1.95586163,2685.5,2685.1,3.72425]
[1727554840090,1.95586163,2685.5,2685.2,0.85598752]
[1727554840422,1.95586163,2685.6,2685.3,0.13229442]
[1727554840619,5.67942163,2685.6,2685.3,0.13229442]
[1727554842098,5.67842062,2685.6,2685.3,0.13229442]
[1727554843201,5.67842062,2685.6,2685.2,0.85598752]
[1727554843425,5.67842062,2685.6,2685.4,0.13215922]
[1727554843623,5.67842062,2685.6,2685.1,8.23125]
[1727554843923,5.67842062,2685.6,2685.5,0.13215922]
[1727554844106,5.67842062,2685.6,2685.1,8.23125]
[1727554844320,5.67842062,2685.6,2685.5,0.13215922]
[1727554844544,5.67842062,2685.6,2685.1,8.23125]
[1727554844689,5.67842062,2685.6,2685.5,0.13215922]
[1727554844891,5.67842062,2685.6,2685.1,8.23125]
[1727554845091,5.67842062,2685.6,2685.5,0.13215922]
[1727554845300,5.67842062,2685.6,2685.1,8.23124]
[1727554845495,3.72356,2685.6,2685.5,0.13215922]
[1727554845688,3.72356,2685.6,2685.1,8.23124]
[1727554845882,3.72356,2685.6,2685.5,0.13215922]
[1727554846132,3.72356,2685.6,2685.1,8.23124]
[1727554846298,3.72356,2685.6,2685.5,0.13215922]
[1727554846503,3.72356,2685.6,2685.1,8.23124]
[1727554846688,3.72356,2685.6,2685.5,0.13215922]
[1727554846887,3.72356,2685.6,2685.1,8.23124]
[1727554847088,3.72356,2685.6,2685.5,0.13215922]
[1727554847926,3.72356,2685.6,2685.1,8.23124]
[1727554848130,3.72356,2685.6,2685.5,0.13215922]
[1727554848306,3.72356,2685.6,2685.1,8.23124]
[1727554848502,3.72356,2685.6,2685.5,0.13215922]
[1727554848890,3.72356,2685.6,2685.2,3.72411]
[1727554849090,3.72356,2685.6,2685.5,0.13215922]
[1727554849291,3.72356,2685.6,2685.2,3.72411]
[1727554849530,3.72356,2685.6,2685.5,0.13215922]
[1727554849996,2.72059176,2685.7,2685.5,0.13215922]
[1727554850325,6.44408176,2685.7,2685.2,3.72411]
[1727554850511,6.44408176,2685.7,2685.6,0.13215922]
[1727554850717,7.89007969,2685.7,2685.2,3.72411]
[1727554850918,6.44408176,2685.7,2685.6,0.13215922]
[1727554851093,6.44408176,2685.7,2685.2,3.72411]
[1727554851285,6.44408176,2685.7,2685.6,0.13206629]
[1727554851484,7.89007969,2685.7,2685.2,3.72411]
[1727554851685,6.44408176,2685.7,2685.6,0.13206629]
[1727554851926,6.44394796,2685.7,2685.2,3.72411]
[1727554852113,6.44394796,2685.7,2685.6,0.13206629]
[1727554852324,7.88991645,2685.7,2685.2,3.72411]
[1727554852503,7.88991645,2685.7,2685.6,0.13206629]
[1727554852504,6.44394796,2685.7,2685.6,0.13206629]
[1727554852706,6.44394796,2685.7,2685.2,3.72411]
[1727554853106,6.44394796,2685.7,2685.3,0.13206629]
[1727554855547,1.95425796,2685.6,2685.3,0.13206629]
[1727554856803,1.95474067,2685.6,2685.3,0.13206629]
[1727554859610,6.44443067,2685.7,2685.3,0.13206629]
[1727554859814,1.95474067,2685.6,2685.3,0.13206629]
[1727554860918,1.95543752,2685.6,2685.3,0.13206629]
[1727554861949,0.8061,2685.5,2685.3,0.13206629]
[1727554863920,2.76153752,2685.5,2685.3,0.13206629]
[1727554864721,3.41004027,2685.5,2685.3,0.13206629]
[1727554864934,3.72384,2685.4,2685.3,0.13206629]
[1727554865242,3.72421,2685.2,2684.7,0.7501]
[1727554865427,5.68101259,2685.2,2684.8,0.13212542]
[1727554865756,5.28178797,2685.1,2684.6,3.72486]
[1727554865924,5.28178797,2685.1,2684.4,3.72513]
[1727554865925,3.85918265,2685.0,2684.5,4.47518]
[1727554866128,2.76290259,2685.0,2684.5,4.47518]
[1727554866543,4.53058,2685.0,2684.5,0.7501]
[1727554866743,6.48738259,2685.0,2684.5,0.7501]
[1727554867625,4.53058,2685.0,2684.5,0.7501]
[1727554868629,4.53058,2685.0,2684.5,4.47517]
[1727554869362,0.8061,2685.0,2684.5,4.47517]
[1727554872255,0.8061,2685.0,2684.6,0.13250568]
[1727554876430,0.8061,2685.0,2684.6,3.85743568]
[1727554878156,0.8061,2685.0,2684.6,3.85734568]
[1727554878363,0.8061,2685.0,2684.6,7.58220568]
[1727554879265,0.8061,2685.0,2684.6,3.85734568]
[1727554880760,0.8061,2685.0,2684.6,7.58219568]
[1727554881838,0.8061,2685.0,2684.6,3.85734568]
[1727554883472,1.95475124,2685.2,2684.9,3.72446]
[1727554883473,0.7901,2685.2,2684.9,3.72446]
[1727554883677,0.7901,2685.2,2684.8,4.54906]
[1727554884063,0.7901,2685.2,2684.9,0.13291128]
[1727554888342,0.7901,2685.2,2684.8,4.54906]
[1727554891123,0.7901,2685.2,2684.9,0.13280988]
[1727554891485,0.7901,2685.2,2684.8,4.54906]
[1727554891693,0.7901,2685.2,2684.9,0.13280988]
[1727554891897,4.51421,2685.2,2684.8,4.54906]
[1727554892098,4.51421,2685.2,2684.9,0.13280988]
[1727554892315,4.51421,2685.2,2684.8,4.54906]
[1727554892821,4.51421,2685.2,2684.9,0.13280988]
[1727554893321,4.51421,2685.2,2684.8,4.54906]
[1727554893909,4.51421,2685.2,2684.9,0.13280988]
[1727554894410,4.51421,2685.2,2684.8,4.54906]
[1727554894713,4.51421,2685.2,2684.9,0.13280988]
[1727554895214,4.51421,2685.2,2684.8,4.54906]
[1727554895590,4.51421,2685.2,2684.9,0.13280988]
[1727554895991,4.51421,2685.2,2684.8,4.54906]
[1727554896422,4.51421,2685.2,2684.9,0.13280988]
[1727554896880,4.51421,2685.2,2684.8,4.54906]
[1727554897080,4.51421,2685.2,2684.9,0.13280988]
[1727554897308,4.51421,2685.2,2684.8,4.54906]
[1727554897703,4.51421,2685.2,2684.9,0.13280988]
[1727554897905,4.51421,2685.2,2684.8,4.54906]
[1727554898098,4.51421,2685.2,2684.9,0.13280988]
[1727554898406,4.51421,2685.2,2684.8,4.54906]
[1727554898606,0.7901,2685.2,2684.8,4.54906]
[1727554898814,0.7901,2685.2,2684.9,0.13280988]
[1727554899198,0.7901,2685.2,2684.8,4.54906]
[1727554899422,4.51423,2685.2,2684.8,4.54906]
[1727554899594,4.51423,2685.2,2684.9,0.13279298]
[1727554899994,4.51423,2685.2,2684.8,4.54906]
[1727554900443,4.51423,2685.2,2684.9,0.13279298]
[1727554900733,4.51423,2685.2,2684.8,4.54906]
[1727554901029,6.46957168,2685.2,2684.8,4.54906]
[1727554901216,6.46957168,2685.2,2684.9,0.12836598]
[1727554901630,6.46957168,2685.2,2684.8,4.54906]
[1727554902011,6.46957168,2685.2,2684.9,0.12836598]
[1727554904340,6.47024803,2685.2,2684.9,0.12836598]
[1727554905610,2.74611803,2685.2,2684.9,0.12836598]
[1727554907142,1.95601803,2685.2,2684.9,0.12836598]
[1727554909239,1.95738162,2685.2,2684.9,0.12836598]
[1727554909951,5.68149162,2685.2,2684.9,0.12836598]
[1727554910445,1.95738162,2685.1,2684.9,0.12836598]
[1727554910653,2.72448162,2685.1,2684.9,0.12836598]
[1727554911021,2.72448162,2685.1,2684.7,3.7248]
[1727554911220,2.72448162,2685.1,2685.0,0.12836598]
[1727554911421,2.72448162,2685.1,2684.7,3.7248]
[1727554912046,2.72448162,2685.1,2684.8,0.12835752]
[1727554912546,2.72448162,2685.1,2684.9,0.12835752]
[1727554912910,2.72448162,2685.1,2684.7,3.7248]
[1727554913114,2.72448162,2685.1,2684.8,0.12835752]
[1727554913526,2.72448162,2685.1,2684.7,3.7248]
[1727554913748,2.72448162,2685.1,2684.9,0.12835752]
[1727554913913,2.72448162,2685.1,2684.7,3.7248]
[1727554914115,0.7671,2685.1,2684.8,0.12835752]
[1727554914345,2.72505479,2685.1,2684.7,3.7248]
[1727554914528,2.72505479,2685.1,2684.9,0.12835752]
[1727554914729,2.72505479,2685.1,2684.7,3.7248]
[1727554915048,2.72505479,2685.1,2685.0,0.12835752]
[1727554915548,2.72505479,2685.1,2684.7,3.7248]
[1727554915752,2.72505479,2685.1,2685.0,0.12835752]
[1727554915960,2.72505479,2685.1,2684.8,3.72464]
[1727554916135,2.72505479,2685.1,2685.0,0.12835752]
[1727554916463,2.72505479,2685.1,2684.8,3.72464]
[1727554916617,2.72505479,2685.1,2685.0,0.12835752]
[1727554916819,2.72505479,2685.1,2684.8,3.72464]
[1727554917037,2.72505479,2685.1,2685.0,0.12835752]
[1727554917235,2.72505479,2685.1,2684.8,3.72464]
[1727554917437,2.72505479,2685.1,2685.0,0.12835752]
[1727554917644,2.72505479,2685.1,2684.8,3.72464]
[1727554918155,2.72505479,2685.1,2684.9,0.12835752]
[1727554918540,1.95795479,2685.1,2684.9,0.12835752]
[1727554919255,1.95814685,2685.1,2684.9,0.12835752]
[1727554919622,1.95814685,2685.1,2684.9,1.37686277]
[1727554919818,1.95814685,2685.1,2685.0,3.72439]
[1727554920049,1.95814685,2685.2,2685.0,3.72439]
[1727554920321,1.95814685,2685.2,2685.0,3.8526123]
[1727554920665,1.95814685,2685.2,2685.0,4.73518406]
[1727554922460,1.95830142,2685.2,2685.0,4.73518406]
[1727554924158,1.95830142,2685.1,2685.0,4.73518406]
[1727554924523,2.75170142,2685.1,2685.0,0.1282223]
[1727554927530,2.75192742,2685.1,2685.0,0.1282223]
[1727554932458,2.75207511,2685.1,2685.0,0.1282223]
[1727554933357,1.95867511,2685.1,2685.0,0.1282223]
[1727554937358,1.95867249,2685.1,2685.0,0.1282223]
[1727554939670,1.95867249,2685.1,2684.8,7.44918]
[1727554939873,1.95867249,2685.1,2685.0,0.12761198]
[1727554940045,1.95867249,2685.1,2684.9,3.7245]
[1727554940371,1.95867249,2685.1,2685.0,0.12761198]
[1727554942275,1.95866316,2685.1,2685.0,0.12761198]
[1727554947170,6.86027579,2685.3,2685.0,0.12761198]
[1727554947171,4.50988,2685.3,2685.0,0.12761198]
[1727554947353,1.95871359,2685.1,2685.0,0.12761198]
[1727554948250,1.95872313,2685.1,2685.0,0.12761198]
[1727554952175,1.95878917,2685.1,2685.0,0.12761198]
[1727554957259,1.95879511,2685.1,2685.0,0.12761198]
[1727554964895,6.44554511,2685.1,2685.0,0.12761198]
[1727554965119,6.92388789,2685.1,2685.0,0.12761198]
[1727554965292,0.7625,2684.8,2684.3,8.26375]
[1727554965612,0.7625,2684.8,2684.3,4.53847]
[1727554965807,0.7625,2684.8,2684.4,3.72521]
[1727554967612,0.7625,2684.8,2684.5,3.72507]
[1727554968413,0.7625,2684.8,2684.5,7.45008]
[1727554968577,2.72094351,2685.0,2684.6,3.72494]
[1727554970315,2.72094351,2685.0,2684.5,3.72501]
[1727554970518,2.72094351,2685.0,2684.7,3.72479]
[1727554976999,2.72094351,2685.0,2684.8,0.12725207]
[1727554977385,2.72094351,2685.0,2684.7,3.72479]
[1727554977589,2.72094351,2685.0,2684.9,0.12725207]
[1727554977789,2.72094351,2685.0,2684.7,3.72479]
[1727554977989,2.72094351,2685.0,2684.9,0.12725207]
[1727554978293,2.72094351,2685.0,2684.7,3.72479]
[1727554978490,2.72094351,2685.0,2684.8,0.12725207]
[1727554978811,2.72094351,2685.0,2684.7,3.72479]
[1727554979013,2.72094351,2685.0,2684.9,0.12725207]
[1727554979215,2.72094351,2685.0,2684.7,3.72479]
[1727554979401,2.72094351,2685.0,2684.9,0.12725207]
[1727554979805,2.72094351,2685.0,2684.7,3.72479]
[1727554980307,2.72094351,2685.0,2684.8,0.12725207]
[1727554980513,2.72094351,2685.0,2684.7,3.72479]
[1727554980828,2.72094351,2685.0,2684.8,0.12725207]
[1727554981119,2.71983239,2685.0,2684.7,3.72479]
[1727554981320,2.71983239,2685.0,2684.8,0.12725207]
[1727554981520,2.71983239,2685.0,2684.7,3.72479]
[1727554981733,2.71983239,2685.0,2684.8,0.12725207]
[1727554982026,2.71983239,2685.0,2684.7,3.72479]
[1727554982187,2.71983239,2685.0,2684.9,0.12725207]
[1727554982389,2.71983239,2685.0,2684.7,3.72479]
[1727554982625,1.95733239,2685.0,2684.9,0.12725207]
[1727554982827,1.95733239,2685.0,2684.7,3.72479]
[1727554983013,1.95733239,2685.0,2684.9,0.12725207]
[1727554983532,1.95733239,2685.0,2684.7,3.72479]
[1727554983823,1.95733239,2685.0,2684.8,0.12725207]
[1727554984332,1.95733239,2685.0,2684.9,0.12727743]
[1727554984510,1.95733239,2685.0,2684.7,3.72479]
[1727554984717,1.95733239,2685.0,2684.8,0.12727743]
[1727554984915,1.95733239,2685.0,2684.7,3.72479]
[1727554985106,1.95733239,2685.0,2684.8,0.12727743]
[1727554985308,1.95724928,2685.0,2684.7,3.72479]
[1727554985507,1.95724928,2685.0,2684.8,0.12727743]
[1727554985703,1.95724928,2685.0,2684.7,3.72479]
[1727554986024,1.95724928,2685.0,2684.8,0.12727743]
[1727554986389,1.95724928,2685.0,2684.6,4.53814]
[1727554986806,1.95724928,2685.0,2684.7,0.12727743]
[1727554987829,1.95724928,2685.0,2684.7,3.85206743]
[1727554991271,1.95724928,2685.0,2684.8,3.72457]
[1727554991437,6.89805914,2685.3,2684.8,3.72457]
[1727554991438,1.95724928,2685.1,2684.8,3.72457]
[1727554991644,1.95724928,2685.1,2684.9,3.72442]
[1727554991805,1.95724928,2685.2,2685.0,3.72439]
[1727554992296,1.95724928,2685.2,2685.1,0.12726898]
[1727554992644,16.733669,2685.7,2685.3,3.72397]
[1727554992645,1.95724928,2685.4,2685.3,3.72397]
[1727554992941,1.95724928,2685.5,2685.3,3.72397]
[1727554993612,1.95724928,2685.6,2685.3,3.72397]
[1727554994948,1.95601559,2685.6,2685.3,3.72397]
[1727554996144,1.95601559,2685.6,2685.3,7.44785]
[1727554996325,2.78131559,2685.7,2685.4,0.12726053]
[1727554996648,1.95601559,2685.7,2685.4,0.12726053]
[1727554999825,5.67779576,2685.8,2685.5,0.8156]
[1727555000024,5.67779576,2685.8,2685.5,0.94207476]
[1727555000241,9.40115576,2685.8,2685.5,0.94207476]
[1727555001625,5.67779576,2685.8,2685.5,0.94207476]
[1727555001826,3.72329,2685.8,2685.5,0.94207476]
[1727555003177,7.4467,2685.8,2685.5,0.94207476]
[1727555005165,3.72342,2685.7,2685.5,0.94207476]
[1727555005959,3.72342,2685.7,2685.5,0.12647476]
[1727555007743,3.72329,2685.8,2685.5,0.12647476]
[1727555007954,7.44667,2685.8,2685.5,0.12647476]
[1727555008162,3.72329,2685.8,2685.5,0.12647476]
[1727555008474,3.72343,2685.7,2685.5,0.12647476]
[1727555013368,6.5009177,2685.9,2685.5,0.12647476]
[1727555014040,3.72343,2685.7,2685.5,0.12647476]
[1727555025762,3.72329,2685.8,2685.5,0.12647476]
[1727555025960,3.7235,2685.7,2685.5,0.12647476]
[1727555026183,3.7235,2685.7,2685.4,0.7834]
[1727555026575,3.7235,2685.7,2685.5,0.12562659]
[1727555033596,1.95354592,2685.8,2685.5,0.12562659]
[1727555034204,5.67833421,2685.8,2685.5,0.12562659]
[1727555034702,1.95497421,2685.7,2685.5,0.12562659]
[1727555036677,1.95497421,2685.6,2685.5,0.12562659]
[1727555036875,1.95497421,2685.7,2685.5,0.12562659]
[1727555037078,1.95497421,2685.6,2685.5,0.12562659]
[1727555039011,6.06932905,2685.8,2685.5,0.12562659]
[1727555039012,6.07322718,2685.8,2685.5,0.12562659]
[1727555039599,1.95831432,2685.6,2685.5,0.12562659]
[1727555039908,6.07322718,2685.8,2685.5,0.12562659]
[1727555040158,1.95831474,2685.6,2685.5,0.12562659]
[1727555040304,6.07322718,2685.8,2685.5,0.12562659]
[1727555041537,2.34986718,2685.7,2685.5,0.12562659]
[1727555041717,6.07322718,2685.8,2685.5,0.12562659]
[1727555046372,7.40955407,2685.8,2685.5,0.12562659]
[1727555046711,6.07329718,2685.7,2685.5,0.12562659]
[1727555046905,6.07329718,2685.7,2685.3,3.72396]
[1727555047110,1.95872256,2685.5,2685.3,3.72396]
[1727555047342,3.72343,2685.7,2685.3,3.72396]
[1727555047506,1.95863339,2685.4,2685.3,3.72396]
[1727555049441,1.95863339,2685.5,2685.3,3.72396]
[1727555049660,1.95863339,2685.4,2685.2,4.51455]
[1727555049865,1.95863339,2685.4,2684.9,3.72439]
[1727555050031,1.95863339,2685.4,2684.9,0.7905]
[1727555050032,3.72398,2685.3,2684.9,0.7905]
[1727555050232,6.48121339,2685.3,2684.9,0.7905]
[1727555050432,1.95863339,2685.2,2684.9,0.7905]
[1727555052030,1.95863339,2685.2,2685.0,0.12333822]
[1727555052255,6.48121339,2685.3,2685.0,0.12333822]
[1727555057065,6.47921987,2685.3,2685.0,0.12333822]
[1727555058273,4.52258,2685.3,2685.0,0.12333822]
[1727555064994,0.7986,2685.3,2685.0,0.12333822]
[1727555071290,1.95582625,2685.4,2685.0,0.12333822]
[1727555071493,5.67970625,2685.4,2684.9,4.51496]
[1727555071785,5.67969483,2685.4,2685.1,0.12408157]
[1727555071956,3.72388,2685.4,2684.9,4.51496]
[1727555072156,5.67969483,2685.4,2685.2,0.12408157]
[1727555072357,5.67969483,2685.4,2684.9,4.51496]
[1727555072593,5.67969483,2685.4,2685.3,0.12408157]
[1727555072778,4.74464948,2685.4,2685.3,0.12408157]
[1727555072980,4.74464948,2685.4,2684.9,4.51496]
[1727555073299,5.67969483,2685.4,2685.0,0.12408157]
[1727555073904,3.72388,2685.4,2685.0,0.12408157]
[1727555074071,5.67969483,2685.4,2685.0,0.12408157]
[1727555081723,5.68020983,2685.4,2685.0,0.12408157]
[1727555086536,3.72388,2685.4,2685.0,0.12408157]
[1727555086710,5.68065765,2685.4,2685.0,0.12408157]
[1727555091341,1.95677765,2685.3,2685.0,0.12408157]
[1727555091496,1.95761799,2685.3,2685.0,0.12408157]
[1727555096015,5.68160799,2685.3,2685.0,0.12408157]
[1727555096215,7.73759495,2685.3,2685.0,0.12408157]
[1727555096509,7.73846039,2685.3,2685.0,0.12408157]
[1727555097431,6.48257343,2685.3,2685.0,0.12408157]
[1727555098531,1.95848343,2685.3,2685.0,0.12408157]
[1727555098837,1.95848343,2685.3,2685.1,0.8207]
[1727555099243,1.95848343,2685.3,2685.2,0.1241576]
[1727555100958,1.95856024,2685.3,2685.2,0.1241576]
[1727555104629,3.72386,2685.4,2685.2,0.1241576]
[1727555104948,1.95868693,2685.3,2685.2,0.1241576]
[1727555109640,1.9587168,2685.3,2685.2,0.1241576]
[1727555114856,5.6826868,2685.3,2685.2,0.1241576]
[1727555115057,4.5272847,2685.3,2685.2,0.1241576]
[1727555115278,4.5272847,2685.3,2684.9,0.7664]
[1727555115479,4.5272847,2685.3,2685.2,0.12414071]
[1727555115786,4.5272847,2685.3,2684.9,0.7664]
[1727555115985,1.95876133,2685.2,2684.9,0.7664]
[1727555118755,1.95876133,2685.2,2684.7,0.7664]
[1727555118957,5.28157797,2685.3,2684.7,0.7664]
[1727555118958,6.48470133,2685.1,2684.7,0.7664]
[1727555119157,10.20904133,2685.1,2684.6,3.72486]
[1727555119369,10.20904133,2685.1,2684.6,4.62464861]
[1727555119370,6.48444447,2685.1,2684.6,4.62464861]
[1727555121959,6.48444447,2685.1,2684.6,8.34952861]
[1727555123301,6.48444447,2685.1,2684.6,4.62464861]
[1727555123511,6.48444447,2685.1,2684.7,3.7248]
[1727555124190,2.76010447,2685.1,2684.7,3.7248]
[1727555124393,2.75926057,2685.1,2684.7,3.7248]
[1727555126534,0.8016,2685.1,2684.7,3.7248]
[1727555126869,0.8016,2685.1,2684.8,0.12413224]
[1727555127384,0.8016,2685.1,2684.9,0.12413224]
[1727555127709,0.8016,2685.1,2685.0,0.12413224]
[1727555127916,0.8016,2685.1,2684.7,3.7248]
[1727555128121,0.8016,2685.1,2685.0,0.12413224]
[1727555128413,0.8016,2685.1,2684.7,3.7248]
[1727555128612,0.8016,2685.1,2685.0,0.12413224]
[1727555128777,0.8016,2685.1,2684.7,3.7248]